[Event "Titled Tuesday Blitz February 07 Early 2023"]
[White "Prieto Aranguren, Alain"]
[Black "Sharafiev, Azat"]
[WhiteFideId "2268906"]
[BlackFideId "4186214"]
[WhiteElo "2258"]
[BlackElo "2427"]
[Result "1/2-1/2"]
[Round "05"]
[TimeControl "180+2"]
[Date "2023.02.07"]
[WhiteClock "0:00:46"]
[BlackClock "0:00:30"]

1. d4 {[%clk 0:03:00]}  d5 {[%clk 0:03:00]} 2. c4 {[%clk 0:03:00]}  e6 {[%clk 0:02:58]} 3. Nc3 {[%clk 0:02:51]}  Nf6 {[%clk 0:02:49]} 4. cxd5 {[%clk 0:02:50]}  exd5 {[%clk 0:02:45]} 5. Nf3 {[%clk 0:02:49]}  c6 {[%clk 0:02:41]} 6. Bg5 {[%clk 0:02:48]}  Be7 {[%clk 0:02:41]} 7. e3 {[%clk 0:02:48]}  O-O {[%clk 0:02:41]} 8. Qc2 {[%clk 0:02:48]}  a5 {[%clk 0:02:36]} 9. Bd3 {[%clk 0:02:47]}  h6 {[%clk 0:02:36]} 10. Bf4 {[%clk 0:02:46]}  Bg4 {[%clk 0:02:34]} 11. Ne5 {[%clk 0:02:44]}  Nbd7 {[%clk 0:02:29]} 12. Nxg4 {[%clk 0:02:43]}  Nxg4 {[%clk 0:02:29]} 13. O-O {[%clk 0:02:41]}  Ngf6 {[%clk 0:02:14]} 14. Rab1 {[%clk 0:02:36]}  Re8 {[%clk 0:02:13]} 15. a3 {[%clk 0:02:33]}  Nb6 {[%clk 0:02:13]} 16. Na4 {[%clk 0:02:27]}  Nxa4 {[%clk 0:02:11]} 17. Qxa4 {[%clk 0:02:25]}  Bd6 {[%clk 0:02:10]} 18. Bxd6 {[%clk 0:02:22]}  Qxd6 {[%clk 0:02:10]} 19. Qc2 {[%clk 0:02:21]}  h5 {[%clk 0:01:57]} 20. b4 {[%clk 0:02:19]}  axb4 {[%clk 0:01:56]} 21. axb4 {[%clk 0:02:19]}  Ng4 {[%clk 0:01:47]} 22. g3 {[%clk 0:02:09]}  h4 {[%clk 0:01:47]} 23. Bf5 {[%clk 0:02:02]}  Nh6 {[%clk 0:01:20]} 24. b5 {[%clk 0:01:57]}  hxg3 {[%clk 0:01:19]} 25. hxg3 {[%clk 0:01:57]}  Nxf5 {[%clk 0:01:19]} 26. Qxf5 {[%clk 0:01:56]}  Ra2 {[%clk 0:01:15]} 27. bxc6 {[%clk 0:01:55]}  bxc6 {[%clk 0:01:15]} 28. Rb7 {[%clk 0:01:50]}  Qe6 {[%clk 0:01:14]} 29. Qxe6 {[%clk 0:01:48]}  Rxe6 {[%clk 0:01:14]} 30. Rfb1 {[%clk 0:01:37]}  Rf6 {[%clk 0:01:14]} 31. R7b2 {[%clk 0:01:34]}  Rxb2 {[%clk 0:01:08]} 32. Rxb2 {[%clk 0:01:33]}  Kf8 {[%clk 0:01:03]} 33. Kg2 {[%clk 0:01:30]}  Ke7 {[%clk 0:01:03]} 34. Rb7+ {[%clk 0:01:29]}  Kd6 {[%clk 0:01:03]} 35. g4 {[%clk 0:01:26]}  g6 {[%clk 0:00:56]} 36. Kg3 {[%clk 0:01:25]}  g5 {[%clk 0:00:46]} 37. f3 {[%clk 0:01:19]}  Ke6 {[%clk 0:00:44]} 38. Rb8 {[%clk 0:01:17]}  Rg6 {[%clk 0:00:38]} 39. Rc8 {[%clk 0:01:12]}  Kd7 {[%clk 0:00:38]} 40. Rf8 {[%clk 0:01:12]}  Ke7 {[%clk 0:00:38]} 41. Rh8 {[%clk 0:01:12]}  Kd7 {[%clk 0:00:37]} 42. Kf2 {[%clk 0:01:10]}  Ke7 {[%clk 0:00:34]} 43. Ke2 {[%clk 0:01:10]}  Rd6 {[%clk 0:00:34]} 44. Rg8 {[%clk 0:01:07]}  f6 {[%clk 0:00:33]} 45. Rg7+ {[%clk 0:01:07]}  Ke6 {[%clk 0:00:33]} 46. Kd3 {[%clk 0:01:05]}  Rd7 {[%clk 0:00:33]} 47. Rg8 {[%clk 0:00:56]}  Ra7 {[%clk 0:00:32]} 48. Rc8 {[%clk 0:00:51]}  Kd7 {[%clk 0:00:32]} 49. Rf8 {[%clk 0:00:50]}  Ke7 {[%clk 0:00:32]} 50. Rc8 {[%clk 0:00:49]}  Ra3+ {[%clk 0:00:32]} 51. Ke2 {[%clk 0:00:48]}  Ra2+ {[%clk 0:00:30]} 52. Kd3 {[%clk 0:00:47]}  Ra3+ {[%clk 0:00:30]} 53. Ke2 {[%clk 0:00:46]}  Kd7 {[%clk 0:00:30]} 54. Rf8 {[%clk 0:00:46]}  Ke7 {[%clk 0:00:30]} 55. Rc8 {[%clk 0:00:46]} 1/2-1/2


[Site "https://www.chess.com"]

[Event "Titled Tuesday Blitz February 07 Early 2023"]
[White "Vivas Zamora, Fabian Ernesto"]
[Black "Ruiz Aguilar, Pablo Alexander"]
[WhiteFideId "3902480"]
[BlackFideId "4401352"]
[WhiteElo "2346"]
[BlackElo "2161"]
[Result "1-0"]
[Round "05"]
[TimeControl "180+2"]
[Date "2023.02.07"]
[WhiteClock "0:00:02"]
[BlackClock "0:00:18"]

1. e4 {[%clk 0:03:00]}  c5 {[%clk 0:02:59]} 2. Nc3 {[%clk 0:02:56]}  Nc6 {[%clk 0:02:58]} 3. Bb5 {[%clk 0:02:55]}  a6 {[%clk 0:02:57]} 4. Bxc6 {[%clk 0:02:54]}  bxc6 {[%clk 0:02:57]} 5. f4 {[%clk 0:02:51]}  g6 {[%clk 0:02:57]} 6. Nf3 {[%clk 0:02:51]}  Bg7 {[%clk 0:02:57]} 7. O-O {[%clk 0:02:51]}  d6 {[%clk 0:02:53]} 8. d3 {[%clk 0:02:52]}  Nf6 {[%clk 0:02:52]} 9. Qe1 {[%clk 0:02:47]}  O-O {[%clk 0:02:51]} 10. Qh4 {[%clk 0:02:30]}  d5 {[%clk 0:02:17]} 11. e5 {[%clk 0:02:24]}  Nd7 {[%clk 0:02:13]} 12. Na4 {[%clk 0:01:57]}  e6 {[%clk 0:02:11]} 13. Qxd8 {[%clk 0:01:51]}  Rxd8 {[%clk 0:02:10]} 14. Be3 {[%clk 0:01:51]}  d4 {[%clk 0:02:05]} 15. Bf2 {[%clk 0:01:43]}  a5 {[%clk 0:02:01]} 16. Nd2 {[%clk 0:01:40]}  Ba6 {[%clk 0:02:00]} 17. Ne4 {[%clk 0:01:22]}  Bf8 {[%clk 0:01:53]} 18. b3 {[%clk 0:01:18]}  Bb5 {[%clk 0:01:52]} 19. Rab1 {[%clk 0:01:11]}  Bxa4 {[%clk 0:01:49]} 20. bxa4 {[%clk 0:01:11]}  Rdb8 {[%clk 0:01:49]} 21. Rb3 {[%clk 0:01:08]}  Rb4 {[%clk 0:01:48]} 22. Rfb1 {[%clk 0:00:58]}  c4 {[%clk 0:01:33]} 23. dxc4 {[%clk 0:00:20]}  Nc5 {[%clk 0:01:32]} 24. Rxb4 {[%clk 0:00:10]}  axb4 {[%clk 0:01:31]} 25. Nf6+ {[%clk 0:00:07]}  Kg7 {[%clk 0:01:20]} 26. Rxb4 {[%clk 0:00:07]}  Nxa4 {[%clk 0:01:01]} 27. Rb7 {[%clk 0:00:05]}  Nc3 {[%clk 0:00:51]} 28. Kf1 {[%clk 0:00:03]}  c5 {[%clk 0:00:45]} 29. Bh4 {[%clk 0:00:02]}  h6 {[%clk 0:00:41]} 30. Ng4 {[%clk 0:00:02]}  Ne4 {[%clk 0:00:31]} 31. Bf6+ {[%clk 0:00:03]}  Nxf6 {[%clk 0:00:29]} 32. exf6+ {[%clk 0:00:04]}  Kg8 {[%clk 0:00:29]} 33. Ne5 {[%clk 0:00:03]}  Bd6 {[%clk 0:00:23]} 34. Nxf7 {[%clk 0:00:03]}  Bxf4 {[%clk 0:00:23]} 35. g3 {[%clk 0:00:03]}  Be3 {[%clk 0:00:23]} 36. Ne5 {[%clk 0:00:02]}  Rf8 {[%clk 0:00:18]} 37. Rg7+ {[%clk 0:00:01]}  Kh8 {[%clk 0:00:18]} 38. Nxg6# {[%clk 0:00:02]} 1-0


[Site "https://www.chess.com"]

[Event "Titled Tuesday Blitz February 07 Early 2023"]
[White "Dushyant Sharma"]
[Black "Rose, Felix"]
[WhiteFideId "25065130"]
[BlackFideId "5105722"]
[WhiteElo "2355"]
[BlackElo "2091"]
[Result "1-0"]
[Round "05"]
[TimeControl "180+2"]
[Date "2023.02.07"]
[WhiteClock "0:01:08"]
[BlackClock "0:00:11"]

1. e4 {[%clk 0:03:00]}  e5 {[%clk 0:02:59]} 2. Nf3 {[%clk 0:03:01]}  Nc6 {[%clk 0:02:58]} 3. Nc3 {[%clk 0:03:01]}  Nf6 {[%clk 0:02:58]} 4. Bb5 {[%clk 0:03:01]}  Bb4 {[%clk 0:02:59]} 5. O-O {[%clk 0:03:02]}  O-O {[%clk 0:02:58]} 6. d3 {[%clk 0:03:02]}  d6 {[%clk 0:02:58]} 7. Bg5 {[%clk 0:03:01]}  Bxc3 {[%clk 0:02:55]} 8. bxc3 {[%clk 0:03:02]}  Qe7 {[%clk 0:02:55]} 9. Re1 {[%clk 0:02:52]}  Nd8 {[%clk 0:02:44]} 10. d4 {[%clk 0:02:49]}  c6 {[%clk 0:02:34]} 11. Bd3 {[%clk 0:02:29]}  Bg4 {[%clk 0:01:50]} 12. h3 {[%clk 0:02:24]}  Bxf3 {[%clk 0:01:47]} 13. Qxf3 {[%clk 0:02:23]}  Ne6 {[%clk 0:01:46]} 14. Bxf6 {[%clk 0:02:15]}  Qxf6 {[%clk 0:01:46]} 15. Qxf6 {[%clk 0:02:15]}  gxf6 {[%clk 0:01:47]} 16. Bc4 {[%clk 0:02:11]}  Nc7 {[%clk 0:01:23]} 17. Rab1 {[%clk 0:02:09]}  b5 {[%clk 0:01:19]} 18. Bd3 {[%clk 0:02:10]}  Rab8 {[%clk 0:01:12]} 19. Re3 {[%clk 0:01:53]}  Rfd8 {[%clk 0:01:07]} 20. Rg3+ {[%clk 0:01:48]}  Kf8 {[%clk 0:01:07]} 21. f4 {[%clk 0:01:49]}  c5 {[%clk 0:01:02]} 22. fxe5 {[%clk 0:01:44]}  fxe5 {[%clk 0:00:59]} 23. Rf1 {[%clk 0:01:45]}  c4 {[%clk 0:00:54]} 24. Be2 {[%clk 0:01:45]}  Ne6 {[%clk 0:00:49]} 25. Bg4 {[%clk 0:01:33]}  Nf4 {[%clk 0:00:44]} 26. Rgf3 {[%clk 0:01:26]}  Rb7 {[%clk 0:00:41]} 27. g3 {[%clk 0:01:22]}  Ng6 {[%clk 0:00:31]} 28. d5 {[%clk 0:01:20]}  Kg7 {[%clk 0:00:28]} 29. h4 {[%clk 0:01:19]}  Nh8 {[%clk 0:00:19]} 30. Rf6 {[%clk 0:01:19]}  a5 {[%clk 0:00:17]} 31. a3 {[%clk 0:01:18]}  b4 {[%clk 0:00:17]} 32. axb4 {[%clk 0:01:19]}  axb4 {[%clk 0:00:18]} 33. cxb4 {[%clk 0:01:18]}  Rxb4 {[%clk 0:00:19]} 34. Bh5 {[%clk 0:01:19]}  Rd7 {[%clk 0:00:18]} 35. Bg4 {[%clk 0:01:17]}  Rd8 {[%clk 0:00:18]} 36. h5 {[%clk 0:01:15]}  h6 {[%clk 0:00:18]} 37. Be2 {[%clk 0:01:11]}  c3 {[%clk 0:00:18]} 38. Bd3 {[%clk 0:01:11]}  Rd7 {[%clk 0:00:13]} 39. Kg2 {[%clk 0:01:10]}  Ra4 {[%clk 0:00:12]} 40. Kh3 {[%clk 0:01:10]}  Ra6 {[%clk 0:00:11]} 41. Bxa6 {[%clk 0:01:08]} 1-0


[Site "https://www.chess.com"]

[Event "Titled Tuesday Blitz February 07 Early 2023"]
[White "Slade, Theodore"]
[Black "Mendez Machado, Andre"]
[WhiteFideId "426547"]
[BlackFideId "6603793"]
[WhiteElo "1995"]
[BlackElo "1974"]
[Result "1-0"]
[Round "05"]
[TimeControl "180+2"]
[Date "2023.02.07"]
[WhiteClock "0:00:46"]
[BlackClock "0:00:02"]

1. d4 {[%clk 0:03:00]}  Nf6 {[%clk 0:02:59]} 2. c4 {[%clk 0:03:01]}  e6 {[%clk 0:02:59]} 3. g3 {[%clk 0:03:01]}  d5 {[%clk 0:02:58]} 4. Bg2 {[%clk 0:03:02]}  Be7 {[%clk 0:02:57]} 5. Nf3 {[%clk 0:03:03]}  O-O {[%clk 0:02:57]} 6. O-O {[%clk 0:03:03]}  dxc4 {[%clk 0:02:57]} 7. Qc2 {[%clk 0:03:04]}  a6 {[%clk 0:02:56]} 8. a4 {[%clk 0:03:04]}  Nc6 {[%clk 0:02:56]} 9. Qxc4 {[%clk 0:03:02]}  Na5 {[%clk 0:02:57]} 10. Qc2 {[%clk 0:02:59]}  b6 {[%clk 0:02:57]} 11. Ne5 {[%clk 0:02:51]}  Bb7 {[%clk 0:02:58]} 12. Bxb7 {[%clk 0:02:49]}  Nxb7 {[%clk 0:02:58]} 13. Nc6 {[%clk 0:02:49]}  Qe8 {[%clk 0:02:58]} 14. Bg5 {[%clk 0:02:41]}  Bc5 {[%clk 0:02:47]} 15. dxc5 {[%clk 0:02:31]}  Qxc6 {[%clk 0:02:45]} 16. Bxf6 {[%clk 0:02:26]}  gxf6 {[%clk 0:02:46]} 17. Qc3 {[%clk 0:02:24]}  f5 {[%clk 0:02:24]} 18. cxb6 {[%clk 0:02:22]}  Qxb6 {[%clk 0:02:18]} 19. Nd2 {[%clk 0:02:19]}  a5 {[%clk 0:02:12]} 20. Rac1 {[%clk 0:02:12]}  Rac8 {[%clk 0:02:06]} 21. Nc4 {[%clk 0:02:09]}  Qb4 {[%clk 0:01:56]} 22. Qxb4 {[%clk 0:02:05]}  axb4 {[%clk 0:01:57]} 23. b3 {[%clk 0:02:03]}  Nc5 {[%clk 0:01:49]} 24. Na5 {[%clk 0:02:00]}  Ne4 {[%clk 0:01:42]} 25. Nc6 {[%clk 0:01:50]}  Rfe8 {[%clk 0:01:28]} 26. Rfd1 {[%clk 0:01:49]}  Nc3 {[%clk 0:01:25]} 27. Rd2 {[%clk 0:01:44]}  Nd5 {[%clk 0:01:08]} 28. Rc4 {[%clk 0:01:42]}  Ra8 {[%clk 0:00:28]} 29. Nxb4 {[%clk 0:01:40]}  Nxb4 {[%clk 0:00:21]} 30. Rxb4 {[%clk 0:01:41]}  Reb8 {[%clk 0:00:21]} 31. Rxb8+ {[%clk 0:01:40]}  Rxb8 {[%clk 0:00:22]} 32. Rd3 {[%clk 0:01:37]}  Kf8 {[%clk 0:00:20]} 33. Rc3 {[%clk 0:01:35]}  c5 {[%clk 0:00:17]} 34. Kg2 {[%clk 0:01:33]}  Ke7 {[%clk 0:00:16]} 35. Rxc5 {[%clk 0:01:30]}  Rxb3 {[%clk 0:00:16]} 36. Rc7+ {[%clk 0:01:30]}  Kf6 {[%clk 0:00:15]} 37. a5 {[%clk 0:01:30]}  Ra3 {[%clk 0:00:15]} 38. Ra7 {[%clk 0:01:29]}  h5 {[%clk 0:00:14]} 39. h4 {[%clk 0:01:28]}  Ra2 {[%clk 0:00:14]} 40. e3 {[%clk 0:01:27]}  Ra3 {[%clk 0:00:11]} 41. Kf3 {[%clk 0:01:27]}  Ra2 {[%clk 0:00:10]} 42. a6 {[%clk 0:01:28]}  Ra3 {[%clk 0:00:10]} 43. Ra8 {[%clk 0:01:28]}  Ra2 {[%clk 0:00:09]} 44. a7 {[%clk 0:01:28]}  Ra3 {[%clk 0:00:10]} 45. Rh8 {[%clk 0:01:25]}  Rxa7 {[%clk 0:00:09]} 46. Rxh5 {[%clk 0:01:25]}  Ra2 {[%clk 0:00:08]} 47. Rh8 {[%clk 0:01:24]}  Kg7 {[%clk 0:00:07]} 48. Rb8 {[%clk 0:01:24]}  Kf6 {[%clk 0:00:06]} 49. Rb1 {[%clk 0:01:23]}  Ra3 {[%clk 0:00:03]} 50. Rb2 {[%clk 0:01:21]}  Ra8 {[%clk 0:00:03]} 51. Kf4 {[%clk 0:01:20]}  Ra4+ {[%clk 0:00:03]} 52. Kf3 {[%clk 0:01:20]}  Ra3 {[%clk 0:00:03]} 53. Re2 {[%clk 0:01:16]}  Ra1 {[%clk 0:00:03]} 54. e4 {[%clk 0:01:15]}  Ra3+ {[%clk 0:00:02]} 55. Re3 {[%clk 0:01:14]}  Ra2 {[%clk 0:00:01]} 56. exf5 {[%clk 0:01:12]}  Kxf5 {[%clk 0:00:02]} 57. g4+ {[%clk 0:01:10]}  Kf6 {[%clk 0:00:02]} 58. Re2 {[%clk 0:01:08]}  Ra3+ {[%clk 0:00:02]} 59. Kf4 {[%clk 0:01:07]}  Ra4+ {[%clk 0:00:03]} 60. Re4 {[%clk 0:01:07]}  Ra3 {[%clk 0:00:02]} 61. f3 {[%clk 0:00:57]}  Ra1 {[%clk 0:00:01]} 62. h5 {[%clk 0:00:53]}  Rh1 {[%clk 0:00:02]} 63. Ra4 {[%clk 0:00:46]} 1-0


[Site "https://www.chess.com"]

[Event "Titled Tuesday Blitz February 07 Early 2023"]
[White "Malka, Samuel"]
[Black "Wilson, Elvin"]
[WhiteFideId "20643675"]
[BlackFideId "2014874"]
[WhiteElo "2165"]
[BlackElo "2183"]
[Result "1-0"]
[Round "05"]
[TimeControl "180+2"]
[Date "2023.02.07"]
[WhiteClock "0:01:09"]
[BlackClock "0:00:15"]

1. d4 {[%clk 0:03:00]}  Nf6 {[%clk 0:02:59]} 2. c4 {[%clk 0:03:00]}  e6 {[%clk 0:02:59]} 3. Nf3 {[%clk 0:03:00]}  d5 {[%clk 0:02:58]} 4. g3 {[%clk 0:03:00]}  Bb4+ {[%clk 0:02:55]} 5. Bd2 {[%clk 0:03:00]}  a5 {[%clk 0:02:55]} 6. Bg2 {[%clk 0:03:00]}  dxc4 {[%clk 0:02:56]} 7. Qc1 {[%clk 0:02:58]}  Nc6 {[%clk 0:02:55]} 8. Qxc4 {[%clk 0:02:55]}  Qd5 {[%clk 0:02:55]} 9. Qxd5 {[%clk 0:02:47]}  exd5 {[%clk 0:02:55]} 10. O-O {[%clk 0:02:44]}  Bg4 {[%clk 0:02:54]} 11. a3 {[%clk 0:02:31]}  Bd6 {[%clk 0:02:27]} 12. Bc3 {[%clk 0:02:16]}  Ne4 {[%clk 0:02:21]} 13. Nbd2 {[%clk 0:02:13]}  Nxd2 {[%clk 0:02:08]} 14. Nxd2 {[%clk 0:02:14]}  Ne7 {[%clk 0:01:53]} 15. e4 {[%clk 0:02:10]}  dxe4 {[%clk 0:01:33]} 16. Nxe4 {[%clk 0:02:10]}  O-O-O {[%clk 0:01:25]} 17. Bxa5 {[%clk 0:02:04]}  Nc6 {[%clk 0:01:08]} 18. Bc3 {[%clk 0:02:03]}  Be7 {[%clk 0:01:07]} 19. d5 {[%clk 0:01:56]}  Rxd5 {[%clk 0:01:00]} 20. Nf6 {[%clk 0:01:54]}  Bxf6 {[%clk 0:00:51]} 21. Bxd5 {[%clk 0:01:54]}  Bxc3 {[%clk 0:00:47]} 22. bxc3 {[%clk 0:01:55]}  Nd8 {[%clk 0:00:41]} 23. Rfe1 {[%clk 0:01:52]}  c6 {[%clk 0:00:38]} 24. Bc4 {[%clk 0:01:46]}  Be6 {[%clk 0:00:38]} 25. Bxe6+ {[%clk 0:01:45]}  Nxe6 {[%clk 0:00:38]} 26. Rad1 {[%clk 0:01:44]}  Kc7 {[%clk 0:00:37]} 27. f4 {[%clk 0:01:43]}  g6 {[%clk 0:00:37]} 28. Kf2 {[%clk 0:01:42]}  Ra8 {[%clk 0:00:36]} 29. Ra1 {[%clk 0:01:40]}  h5 {[%clk 0:00:34]} 30. a4 {[%clk 0:01:37]}  Ra5 {[%clk 0:00:34]} 31. Re5 {[%clk 0:01:36]}  Ra6 {[%clk 0:00:29]} 32. f5 {[%clk 0:01:28]}  gxf5 {[%clk 0:00:20]} 33. Rxf5 {[%clk 0:01:29]}  Nd8 {[%clk 0:00:19]} 34. Rxh5 {[%clk 0:01:27]}  c5 {[%clk 0:00:18]} 35. Rxc5+ {[%clk 0:01:26]}  Kb8 {[%clk 0:00:17]} 36. h4 {[%clk 0:01:22]}  Rf6+ {[%clk 0:00:17]} 37. Kg2 {[%clk 0:01:22]}  Nc6 {[%clk 0:00:17]} 38. Re1 {[%clk 0:01:19]}  Rd6 {[%clk 0:00:17]} 39. Re2 {[%clk 0:01:18]}  Kc7 {[%clk 0:00:17]} 40. Rf5 {[%clk 0:01:18]}  f6 {[%clk 0:00:16]} 41. h5 {[%clk 0:01:18]}  Kd7 {[%clk 0:00:15]} 42. h6 {[%clk 0:01:18]}  Ne7 {[%clk 0:00:16]} 43. Rf4 {[%clk 0:01:10]}  Ng6 {[%clk 0:00:15]} 44. Rd4 {[%clk 0:01:09]} 1-0


[Site "https://www.chess.com"]

[Event "Titled Tuesday Blitz February 07 Early 2023"]
[White "Hertlein, Irena"]
[Black "sabkeIXO"]
[WhiteFideId "21817618"]
[WhiteElo "1994"]
[BlackElo "2467"]
[Result "0-1"]
[Round "05"]
[TimeControl "180+2"]
[Date "2023.02.07"]
[WhiteClock "0:00:09"]
[BlackClock "0:00:27"]

1. Nf3 {[%clk 0:03:00]}  Nf6 {[%clk 0:02:59]} 2. c4 {[%clk 0:03:00]}  g6 {[%clk 0:02:59]} 3. b3 {[%clk 0:03:00]}  Bg7 {[%clk 0:02:59]} 4. Bb2 {[%clk 0:03:00]}  O-O {[%clk 0:03:00]} 5. g3 {[%clk 0:03:00]}  d6 {[%clk 0:03:00]} 6. d4 {[%clk 0:03:00]}  c5 {[%clk 0:02:58]} 7. Bg2 {[%clk 0:03:00]}  Nc6 {[%clk 0:02:58]} 8. O-O {[%clk 0:02:59]}  Bf5 {[%clk 0:02:54]} 9. Nbd2 {[%clk 0:02:44]}  Ne4 {[%clk 0:02:47]} 10. Nh4 {[%clk 0:02:43]}  Nxd2 {[%clk 0:02:46]} 11. Qxd2 {[%clk 0:02:42]}  Nxd4 {[%clk 0:02:38]} 12. Nxf5 {[%clk 0:02:42]}  Nxf5 {[%clk 0:02:37]} 13. Bxg7 {[%clk 0:02:41]}  Nxg7 {[%clk 0:02:36]} 14. Bxb7 {[%clk 0:02:42]}  Rb8 {[%clk 0:02:37]} 15. Bf3 {[%clk 0:02:40]}  Qb6 {[%clk 0:02:33]} 16. h4 {[%clk 0:02:38]}  Qb4 {[%clk 0:02:30]} 17. Qd3 {[%clk 0:02:28]}  a5 {[%clk 0:02:23]} 18. h5 {[%clk 0:02:24]}  a4 {[%clk 0:02:17]} 19. hxg6 {[%clk 0:01:58]}  hxg6 {[%clk 0:02:10]} 20. Rab1 {[%clk 0:01:47]}  axb3 {[%clk 0:02:08]} 21. Rxb3 {[%clk 0:01:43]}  Qa4 {[%clk 0:02:06]} 22. Bd5 {[%clk 0:01:40]}  e6 {[%clk 0:01:54]} 23. Rxb8 {[%clk 0:01:37]}  Rxb8 {[%clk 0:01:52]} 24. Bf3 {[%clk 0:01:38]}  Rd8 {[%clk 0:01:36]} 25. Qb3 {[%clk 0:01:23]}  Qxb3 {[%clk 0:01:32]} 26. axb3 {[%clk 0:01:22]}  Kf8 {[%clk 0:01:32]} 27. Ra1 {[%clk 0:01:21]}  Rb8 {[%clk 0:01:32]} 28. Ra6 {[%clk 0:01:18]}  Ke7 {[%clk 0:01:30]} 29. Ra7+ {[%clk 0:01:18]}  Kf6 {[%clk 0:01:29]} 30. Rd7 {[%clk 0:01:13]}  Ne8 {[%clk 0:01:16]} 31. Bc6 {[%clk 0:01:09]}  Rxb3 {[%clk 0:01:11]} 32. Rd8 {[%clk 0:01:09]}  Ng7 {[%clk 0:01:09]} 33. Rxd6 {[%clk 0:01:07]}  Nf5 {[%clk 0:01:09]} 34. Rd8 {[%clk 0:01:02]}  Nd4 {[%clk 0:01:09]} 35. Bf3 {[%clk 0:00:53]}  Rc3 {[%clk 0:00:58]} 36. Kg2 {[%clk 0:00:42]}  Nxf3 {[%clk 0:00:57]} 37. exf3 {[%clk 0:00:41]}  Rxc4 {[%clk 0:00:57]} 38. Rc8 {[%clk 0:00:41]}  Rc1 {[%clk 0:00:55]} 39. Rc7 {[%clk 0:00:38]}  c4 {[%clk 0:00:54]} 40. f4 {[%clk 0:00:38]}  c3 {[%clk 0:00:55]} 41. g4 {[%clk 0:00:38]}  c2 {[%clk 0:00:49]} 42. Kf3 {[%clk 0:00:37]}  g5 {[%clk 0:00:41]} 43. fxg5+ {[%clk 0:00:32]}  Kxg5 {[%clk 0:00:42]} 44. Rc5+ {[%clk 0:00:31]}  f5 {[%clk 0:00:42]} 45. gxf5 {[%clk 0:00:30]}  exf5 {[%clk 0:00:42]} 46. Rc8 {[%clk 0:00:28]}  Kf6 {[%clk 0:00:40]} 47. Kf4 {[%clk 0:00:20]}  Ke6 {[%clk 0:00:38]} 48. f3 {[%clk 0:00:20]}  Kd5 {[%clk 0:00:28]} 49. Rc7 {[%clk 0:00:19]}  Kd4 {[%clk 0:00:27]} 50. Kxf5 {[%clk 0:00:18]}  Kd3 {[%clk 0:00:27]} 51. f4 {[%clk 0:00:16]}  Rf1 {[%clk 0:00:26]} 52. Kg5 {[%clk 0:00:11]}  c1=Q {[%clk 0:00:26]} 53. Rxc1 {[%clk 0:00:11]}  Rxc1 {[%clk 0:00:27]} 54. f5 {[%clk 0:00:11]}  Ke4 {[%clk 0:00:27]} 55. f6 {[%clk 0:00:11]}  Ke5 {[%clk 0:00:27]} 56. f7 {[%clk 0:00:10]}  Rf1 {[%clk 0:00:27]} 57. Kg6 {[%clk 0:00:09]}  Ke6 {[%clk 0:00:27]} 0-1


[Site "https://www.chess.com"]

[Event "Titled Tuesday Blitz February 07 Early 2023"]
[White "Sanchez, Sebastian Felipe"]
[Black "Simonovic, Miroslav"]
[WhiteFideId "4403304"]
[BlackFideId "919152"]
[WhiteElo "2427"]
[BlackElo "2082"]
[Result "1-0"]
[Round "05"]
[TimeControl "180+2"]
[Date "2023.02.07"]
[WhiteClock "0:01:42"]
[BlackClock "0:00:48"]

1. d4 {[%clk 0:03:00]}  Nf6 {[%clk 0:02:59]} 2. Bg5 {[%clk 0:03:00]}  e6 {[%clk 0:02:58]} 3. Nd2 {[%clk 0:03:00]}  Be7 {[%clk 0:02:57]} 4. e3 {[%clk 0:03:00]}  O-O {[%clk 0:02:56]} 5. Bd3 {[%clk 0:03:00]}  d5 {[%clk 0:02:55]} 6. f4 {[%clk 0:02:58]}  b6 {[%clk 0:02:50]} 7. Ngf3 {[%clk 0:02:57]}  c5 {[%clk 0:02:49]} 8. c3 {[%clk 0:02:55]}  cxd4 {[%clk 0:02:44]} 9. exd4 {[%clk 0:02:54]}  Bb7 {[%clk 0:02:44]} 10. Ne5 {[%clk 0:02:50]}  Ne4 {[%clk 0:02:38]} 11. Bxe7 {[%clk 0:02:37]}  Qxe7 {[%clk 0:02:38]} 12. O-O {[%clk 0:02:37]}  Nd7 {[%clk 0:02:33]} 13. Qe2 {[%clk 0:02:35]}  Ndf6 {[%clk 0:02:25]} 14. Ndf3 {[%clk 0:02:32]}  h6 {[%clk 0:02:19]} 15. g4 {[%clk 0:02:26]}  Nd7 {[%clk 0:02:13]} 16. Qg2 {[%clk 0:02:19]}  Nxe5 {[%clk 0:02:10]} 17. Nxe5 {[%clk 0:02:15]}  g6 {[%clk 0:01:43]} 18. f5 {[%clk 0:02:07]}  exf5 {[%clk 0:01:31]} 19. gxf5 {[%clk 0:02:07]}  Kh7 {[%clk 0:01:30]} 20. fxg6+ {[%clk 0:02:07]}  fxg6 {[%clk 0:01:30]} 21. Qxg6+ {[%clk 0:02:03]}  Kh8 {[%clk 0:01:30]} 22. Nf7+ {[%clk 0:01:47]}  Rxf7 {[%clk 0:01:20]} 23. Rxf7 {[%clk 0:01:48]}  Qxf7 {[%clk 0:00:55]} 24. Qxf7 {[%clk 0:01:48]}  Rg8+ {[%clk 0:00:56]} 25. Kh1 {[%clk 0:01:47]}  Rg7 {[%clk 0:00:54]} 26. Qf8+ {[%clk 0:01:47]}  Kh7 {[%clk 0:00:54]} 27. Rg1 {[%clk 0:01:46]}  Rxg1+ {[%clk 0:00:52]} 28. Kxg1 {[%clk 0:01:45]}  Kg6 {[%clk 0:00:48]} 29. Qb8 {[%clk 0:01:42]} 1-0


[Site "https://www.chess.com"]

[Event "Titled Tuesday Blitz February 07 Early 2023"]
[White "Manon-og, Ramon Jr."]
[Black "Cella, Glaucio Dalla Cortt"]
[WhiteFideId "5200776"]
[BlackFideId "2119455"]
[WhiteElo "1999"]
[BlackElo "1894"]
[Result "0-1"]
[Round "05"]
[TimeControl "180+2"]
[Date "2023.02.07"]
[WhiteClock "0:00:04"]
[BlackClock "0:01:14"]

1. e4 {[%clk 0:03:00]}  c5 {[%clk 0:02:57]} 2. Nf3 {[%clk 0:03:00]}  e6 {[%clk 0:02:56]} 3. d4 {[%clk 0:02:56]}  cxd4 {[%clk 0:02:56]} 4. Nxd4 {[%clk 0:02:56]}  Nf6 {[%clk 0:02:54]} 5. Bd3 {[%clk 0:02:55]}  Nc6 {[%clk 0:02:54]} 6. Be3 {[%clk 0:02:52]}  d5 {[%clk 0:02:47]} 7. Nxc6 {[%clk 0:02:47]}  bxc6 {[%clk 0:02:47]} 8. e5 {[%clk 0:02:44]}  Nd7 {[%clk 0:02:47]} 9. Bf4 {[%clk 0:02:44]}  g5 {[%clk 0:02:40]} 10. Bg3 {[%clk 0:02:43]}  h6 {[%clk 0:02:40]} 11. O-O {[%clk 0:02:42]}  h5 {[%clk 0:02:32]} 12. h3 {[%clk 0:02:42]}  Rb8 {[%clk 0:02:31]} 13. b3 {[%clk 0:02:39]}  g4 {[%clk 0:02:30]} 14. hxg4 {[%clk 0:02:37]}  Qg5 {[%clk 0:02:26]} 15. Qd2 {[%clk 0:02:19]}  Qxg4 {[%clk 0:02:25]} 16. Qe2 {[%clk 0:01:47]}  Qg7 {[%clk 0:02:22]} 17. Nd2 {[%clk 0:01:47]}  h4 {[%clk 0:02:08]} 18. Bh2 {[%clk 0:01:45]}  Nc5 {[%clk 0:02:03]} 19. c4 {[%clk 0:01:26]}  Rg8 {[%clk 0:02:00]} 20. g3 {[%clk 0:01:22]}  Nxd3 {[%clk 0:02:01]} 21. Qxd3 {[%clk 0:01:22]}  hxg3 {[%clk 0:01:57]} 22. Bxg3 {[%clk 0:01:14]}  Qxe5 {[%clk 0:01:57]} 23. cxd5 {[%clk 0:01:05]}  cxd5 {[%clk 0:01:53]} 24. Rfe1 {[%clk 0:01:03]}  Qf4 {[%clk 0:01:52]} 25. Nf1 {[%clk 0:00:51]}  Bc5 {[%clk 0:01:46]} 26. Kh2 {[%clk 0:00:33]}  Qh6+ {[%clk 0:01:36]} 27. Kg2 {[%clk 0:00:31]}  e5 {[%clk 0:01:37]} 28. Rxe5+ {[%clk 0:00:29]}  Kf8 {[%clk 0:01:33]} 29. Rae1 {[%clk 0:00:19]}  Qh3+ {[%clk 0:01:24]} 30. Kg1 {[%clk 0:00:19]}  Ba6 {[%clk 0:01:25]} 31. Qf3 {[%clk 0:00:08]}  Bxf1 {[%clk 0:01:17]} 32. Re8+ {[%clk 0:00:03]}  Rxe8 {[%clk 0:01:14]} 33. Rxe8+ {[%clk 0:00:04]}  Kxe8 {[%clk 0:01:14]} 0-1


[Site "https://www.chess.com"]